[Event "Titled Tuesday Blitz October 18 Late 2022"]
[White "Przybylski, Wojciech"]
[Black "Sargsyan, Anna M."]
[WhiteFideId "1117599"]
[BlackFideId "13308130"]
[WhiteElo "2221"]
[BlackElo "2284"]
[Result "1-0"]
[Round "06"]
[TimeControl "180+1"]
[Date "2022.10.19"]
[WhiteClock "0:00:32"]
[BlackClock "0:00:16"]

1. e4 {[%clk 0:03:00]}  c6 {[%clk 0:02:56]} 2. d4 {[%clk 0:02:58]}  d5 {[%clk 0:02:56]} 3. Nc3 {[%clk 0:02:58]}  dxe4 {[%clk 0:02:53]} 4. Nxe4 {[%clk 0:02:52]}  Bf5 {[%clk 0:02:53]} 5. Ng3 {[%clk 0:02:52]}  Bg6 {[%clk 0:02:53]} 6. h4 {[%clk 0:02:51]}  h6 {[%clk 0:02:53]} 7. N1e2 {[%clk 0:02:51]}  e5 {[%clk 0:02:35]} 8. dxe5 {[%clk 0:02:48]}  Qa5+ {[%clk 0:02:34]} 9. Bd2 {[%clk 0:02:33]}  Qxe5 {[%clk 0:02:35]} 10. Bc3 {[%clk 0:02:33]}  Qe6 {[%clk 0:02:10]} 11. Qd2 {[%clk 0:02:29]}  Nd7 {[%clk 0:02:04]} 12. O-O-O {[%clk 0:02:27]}  O-O-O {[%clk 0:02:04]} 13. Kb1 {[%clk 0:02:17]}  Qe8 {[%clk 0:01:22]} 14. Nf4 {[%clk 0:02:06]}  Nc5 {[%clk 0:01:09]} 15. Qxd8+ {[%clk 0:02:01]}  Qxd8 {[%clk 0:01:10]} 16. Rxd8+ {[%clk 0:02:00]}  Kxd8 {[%clk 0:01:11]} 17. Nxg6 {[%clk 0:01:58]}  fxg6 {[%clk 0:01:07]} 18. Bc4 {[%clk 0:01:55]}  Nf6 {[%clk 0:01:05]} 19. Bf7 {[%clk 0:01:47]}  Nce4 {[%clk 0:00:52]} 20. Nxe4 {[%clk 0:01:10]}  Nxe4 {[%clk 0:00:53]} 21. Bd4 {[%clk 0:01:09]}  g5 {[%clk 0:00:36]} 22. Bg6 {[%clk 0:01:05]}  Bc5 {[%clk 0:00:24]} 23. Bxe4 {[%clk 0:01:03]}  Bxd4 {[%clk 0:00:22]} 24. Rd1 {[%clk 0:01:02]}  c5 {[%clk 0:00:23]} 25. c3 {[%clk 0:01:02]}  Kc7 {[%clk 0:00:20]} 26. cxd4 {[%clk 0:01:01]}  cxd4 {[%clk 0:00:21]} 27. hxg5 {[%clk 0:00:50]}  hxg5 {[%clk 0:00:19]} 28. Rxd4 {[%clk 0:00:49]}  Rh1+ {[%clk 0:00:20]} 29. Kc2 {[%clk 0:00:49]}  Rf1 {[%clk 0:00:21]} 30. Rd2 {[%clk 0:00:46]}  a6 {[%clk 0:00:21]} 31. a3 {[%clk 0:00:45]}  b5 {[%clk 0:00:22]} 32. Kd3 {[%clk 0:00:44]}  Kb6 {[%clk 0:00:21]} 33. Ke2 {[%clk 0:00:43]}  Rc1 {[%clk 0:00:20]} 34. Kf3 {[%clk 0:00:43]}  Rc4 {[%clk 0:00:19]} 35. Bd5 {[%clk 0:00:42]}  Rf4+ {[%clk 0:00:19]} 36. Kg3 {[%clk 0:00:42]}  Kc5 {[%clk 0:00:20]} 37. f3 {[%clk 0:00:40]}  a5 {[%clk 0:00:20]} 38. Be4 {[%clk 0:00:40]}  b4 {[%clk 0:00:20]} 39. Rd5+ {[%clk 0:00:35]}  Kb6 {[%clk 0:00:18]} 40. Rxg5 {[%clk 0:00:34]}  Rf7 {[%clk 0:00:18]} 41. a4 {[%clk 0:00:34]}  Rc7 {[%clk 0:00:15]} 42. Rb5+ {[%clk 0:00:32]}  Ka6 {[%clk 0:00:15]} 43. Bd3 {[%clk 0:00:31]}  Ka7 {[%clk 0:00:14]} 44. Rxa5+ {[%clk 0:00:31]}  Kb6 {[%clk 0:00:15]} 45. Rb5+ {[%clk 0:00:32]}  Kc6 {[%clk 0:00:16]} 46. Rxb4 {[%clk 0:00:32]} 1-0


[Site "https://www.chess.com"]

[Event "Titled Tuesday Blitz October 18 Late 2022"]
[White "Romero Ruscalleda, Josep"]
[Black "Malka, Samuel"]
[WhiteFideId "2231859"]
[BlackFideId "20643675"]
[WhiteElo "2313"]
[BlackElo "2463"]
[Result "1/2-1/2"]
[Round "06"]
[TimeControl "180+1"]
[Date "2022.10.19"]
[WhiteClock "0:00:20"]
[BlackClock "0:00:05"]

1. e4 {[%clk 0:03:00]}  c5 {[%clk 0:02:57]} 2. c3 {[%clk 0:03:00]}  d5 {[%clk 0:02:55]} 3. exd5 {[%clk 0:03:00]}  Qxd5 {[%clk 0:02:56]} 4. d4 {[%clk 0:03:01]}  Nc6 {[%clk 0:02:55]} 5. Nf3 {[%clk 0:03:00]}  Bf5 {[%clk 0:02:54]} 6. Be3 {[%clk 0:02:59]}  cxd4 {[%clk 0:02:52]} 7. cxd4 {[%clk 0:02:59]}  Bxb1 {[%clk 0:02:51]} 8. Rxb1 {[%clk 0:02:58]}  e6 {[%clk 0:02:49]} 9. Bd3 {[%clk 0:02:58]}  Nf6 {[%clk 0:02:49]} 10. O-O {[%clk 0:02:57]}  Bd6 {[%clk 0:02:46]} 11. b3 {[%clk 0:02:54]}  O-O {[%clk 0:02:43]} 12. h3 {[%clk 0:02:53]}  h6 {[%clk 0:02:43]} 13. Re1 {[%clk 0:02:46]}  Rfc8 {[%clk 0:02:43]} 14. Qe2 {[%clk 0:02:43]}  Nb4 {[%clk 0:02:39]} 15. Bc4 {[%clk 0:02:37]}  Qf5 {[%clk 0:02:40]} 16. a3 {[%clk 0:02:35]}  Nbd5 {[%clk 0:02:36]} 17. b4 {[%clk 0:02:31]}  Nc3 {[%clk 0:02:33]} 18. Qd3 {[%clk 0:02:24]}  Qxd3 {[%clk 0:02:29]} 19. Bxd3 {[%clk 0:02:23]}  Nxb1 {[%clk 0:02:29]} 20. Rxb1 {[%clk 0:02:23]}  Rc3 {[%clk 0:02:25]} 21. Be2 {[%clk 0:02:14]}  Rxa3 {[%clk 0:02:16]} 22. Nd2 {[%clk 0:02:12]}  Rc8 {[%clk 0:02:10]} 23. Nc4 {[%clk 0:02:10]}  Ra6 {[%clk 0:01:56]} 24. b5 {[%clk 0:02:08]}  Rb6 {[%clk 0:01:50]} 25. Nxb6 {[%clk 0:02:05]}  axb6 {[%clk 0:01:50]} 26. Rc1 {[%clk 0:01:56]}  Rxc1+ {[%clk 0:01:47]} 27. Bxc1 {[%clk 0:01:56]}  Nd5 {[%clk 0:01:36]} 28. g3 {[%clk 0:01:49]}  f5 {[%clk 0:01:31]} 29. Kg2 {[%clk 0:01:44]}  Kf7 {[%clk 0:01:31]} 30. Kf3 {[%clk 0:01:43]}  Kf6 {[%clk 0:01:32]} 31. Bc4 {[%clk 0:01:41]}  Bb4 {[%clk 0:01:10]} 32. g4 {[%clk 0:01:24]}  g5 {[%clk 0:00:55]} 33. h4 {[%clk 0:01:10]}  Bc3 {[%clk 0:00:40]} 34. hxg5+ {[%clk 0:01:06]}  hxg5 {[%clk 0:00:40]} 35. gxf5 {[%clk 0:01:03]}  Kxf5 {[%clk 0:00:39]} 36. Bxd5 {[%clk 0:01:02]}  exd5 {[%clk 0:00:40]} 37. Ke3 {[%clk 0:01:02]}  Kg4 {[%clk 0:00:23]} 38. f3+ {[%clk 0:00:54]}  Kh4 {[%clk 0:00:20]} 39. Kd3 {[%clk 0:00:53]}  Bb4 {[%clk 0:00:19]} 40. Be3 {[%clk 0:00:51]}  Bd6 {[%clk 0:00:19]} 41. Bf2+ {[%clk 0:00:50]}  Kh3 {[%clk 0:00:18]} 42. Be3 {[%clk 0:00:47]}  Bf4 {[%clk 0:00:19]} 43. Bf2 {[%clk 0:00:45]}  Kg2 {[%clk 0:00:19]} 44. Ke2 {[%clk 0:00:45]}  Bg3 {[%clk 0:00:16]} 45. Be3 {[%clk 0:00:45]}  Bf4 {[%clk 0:00:17]} 46. Bf2 {[%clk 0:00:45]}  Bc1 {[%clk 0:00:17]} 47. Be1 {[%clk 0:00:44]}  Bb2 {[%clk 0:00:13]} 48. Bf2 {[%clk 0:00:44]}  Bc1 {[%clk 0:00:12]} 49. Be1 {[%clk 0:00:44]}  Kh3 {[%clk 0:00:11]} 50. Bb4 {[%clk 0:00:43]}  Bb2 {[%clk 0:00:08]} 51. Be7 {[%clk 0:00:43]}  Bc1 {[%clk 0:00:04]} 52. Bd8 {[%clk 0:00:41]}  Kg3 {[%clk 0:00:01]} 53. Bxb6 {[%clk 0:00:40]}  Kf4 {[%clk 0:00:02]} 54. Bc7+ {[%clk 0:00:40]}  Kf5 {[%clk 0:00:02]} 55. Bd6 {[%clk 0:00:39]}  Bf4 {[%clk 0:00:03]} 56. Bb4 {[%clk 0:00:37]}  Ke6 {[%clk 0:00:03]} 57. Be1 {[%clk 0:00:37]}  Kd7 {[%clk 0:00:04]} 58. Kd3 {[%clk 0:00:34]}  Kc7 {[%clk 0:00:04]} 59. Ba5+ {[%clk 0:00:35]}  Kd6 {[%clk 0:00:03]} 60. Bb4+ {[%clk 0:00:34]}  Kc7 {[%clk 0:00:03]} 61. Bc5 {[%clk 0:00:34]}  Kd7 {[%clk 0:00:03]} 62. Bb6 {[%clk 0:00:34]}  Kd6 {[%clk 0:00:03]} 63. Ke2 {[%clk 0:00:34]}  Bg3 {[%clk 0:00:03]} 64. Ba7 {[%clk 0:00:33]}  Bf4 {[%clk 0:00:03]} 65. Bb8+ {[%clk 0:00:33]}  Ke6 {[%clk 0:00:04]} 66. Bxf4 {[%clk 0:00:32]}  gxf4 {[%clk 0:00:05]} 67. Kd3 {[%clk 0:00:32]}  Kd7 {[%clk 0:00:04]} 68. Kc3 {[%clk 0:00:32]}  b6 {[%clk 0:00:03]} 69. Kd2 {[%clk 0:00:31]}  Kd6 {[%clk 0:00:03]} 70. Ke2 {[%clk 0:00:31]}  Ke6 {[%clk 0:00:03]} 71. Kf2 {[%clk 0:00:31]}  Kf6 {[%clk 0:00:03]} 72. Kg2 {[%clk 0:00:31]}  Kg6 {[%clk 0:00:03]} 73. Kh2 {[%clk 0:00:30]}  Kh6 {[%clk 0:00:04]} 74. Kg2 {[%clk 0:00:29]}  Kg6 {[%clk 0:00:04]} 75. Kh2 {[%clk 0:00:27]}  Kf5 {[%clk 0:00:04]} 76. Kg2 {[%clk 0:00:26]}  Kg5 {[%clk 0:00:05]} 77. Kh3 {[%clk 0:00:20]}  Kh5 {[%clk 0:00:05]} 78. Kg2 {[%clk 0:00:21]}  Kh4 {[%clk 0:00:05]} 79. Kh2 {[%clk 0:00:21]}  Kg5 {[%clk 0:00:05]} 80. Kh3 {[%clk 0:00:20]}  Kh5 {[%clk 0:00:05]} 81. Kg2 {[%clk 0:00:20]}  Kg5 {[%clk 0:00:05]} 82. Kh3 {[%clk 0:00:20]} 1/2-1/2


[Site "https://www.chess.com"]

[Event "Titled Tuesday Blitz October 18 Late 2022"]
[White "Sanchez, Robert"]
[Black "Cosoi Scherzer, Alejandro"]
[WhiteFideId "2034360"]
[BlackFideId "3401430"]
[WhiteElo "2371"]
[BlackElo "1967"]
[Result "1-0"]
[Round "06"]
[TimeControl "180+1"]
[Date "2022.10.19"]
[WhiteClock "0:01:06"]
[BlackClock "0:00:03"]

1. e4 {[%clk 0:03:00]}  e5 {[%clk 0:02:57]} 2. Nf3 {[%clk 0:03:01]}  Nf6 {[%clk 0:02:56]} 3. Nxe5 {[%clk 0:03:01]}  d6 {[%clk 0:02:57]} 4. Nf3 {[%clk 0:03:01]}  Nxe4 {[%clk 0:02:57]} 5. Nc3 {[%clk 0:03:00]}  Nxc3 {[%clk 0:02:57]} 6. dxc3 {[%clk 0:03:00]}  Be7 {[%clk 0:02:57]} 7. Bd3 {[%clk 0:03:00]}  Nc6 {[%clk 0:02:57]} 8. Be3 {[%clk 0:03:00]}  Be6 {[%clk 0:02:56]} 9. Qd2 {[%clk 0:02:58]}  Qd7 {[%clk 0:02:56]} 10. h3 {[%clk 0:02:58]}  Bf6 {[%clk 0:02:56]} 11. Nd4 {[%clk 0:02:57]}  Nxd4 {[%clk 0:02:55]} 12. cxd4 {[%clk 0:02:57]}  d5 {[%clk 0:02:54]} 13. c3 {[%clk 0:02:55]}  Bf5 {[%clk 0:02:53]} 14. g4 {[%clk 0:02:45]}  Bxd3 {[%clk 0:02:50]} 15. Qxd3 {[%clk 0:02:45]}  h6 {[%clk 0:02:47]} 16. O-O-O {[%clk 0:02:45]}  O-O-O {[%clk 0:02:44]} 17. Kb1 {[%clk 0:02:44]}  Rhe8 {[%clk 0:02:41]} 18. f4 {[%clk 0:02:23]}  g6 {[%clk 0:02:07]} 19. g5 {[%clk 0:02:19]}  hxg5 {[%clk 0:02:06]} 20. fxg5 {[%clk 0:02:19]}  Bg7 {[%clk 0:02:06]} 21. h4 {[%clk 0:02:16]}  Re4 {[%clk 0:01:52]} 22. h5 {[%clk 0:02:08]}  gxh5 {[%clk 0:01:52]} 23. Rxh5 {[%clk 0:02:07]}  Rde8 {[%clk 0:01:53]} 24. Bc1 {[%clk 0:02:07]}  Qf5 {[%clk 0:01:36]} 25. Rf1 {[%clk 0:01:54]}  Qg6 {[%clk 0:01:31]} 26. Rhh1 {[%clk 0:01:47]}  Kb8 {[%clk 0:01:13]} 27. a3 {[%clk 0:01:46]}  a6 {[%clk 0:01:10]} 28. Ka2 {[%clk 0:01:45]}  R8e7 {[%clk 0:00:57]} 29. Qh3 {[%clk 0:01:37]}  Re2 {[%clk 0:00:48]} 30. Qh7 {[%clk 0:01:31]}  Qxh7 {[%clk 0:00:17]} 31. Rxh7 {[%clk 0:01:29]}  Bf8 {[%clk 0:00:10]} 32. Rh8 {[%clk 0:01:27]}  Re8 {[%clk 0:00:08]} 33. Rxf7 {[%clk 0:01:26]}  Re1 {[%clk 0:00:06]} 34. Bf4 {[%clk 0:01:22]}  Ka7 {[%clk 0:00:02]} 35. Rhxf8 {[%clk 0:01:20]}  Rxf8 {[%clk 0:00:02]} 36. Rxf8 {[%clk 0:01:21]}  Rg1 {[%clk 0:00:01]} 37. Rf7 {[%clk 0:01:18]}  Rg4 {[%clk 0:00:02]} 38. Bxc7 {[%clk 0:01:10]}  a5 {[%clk 0:00:03]} 39. Bf4 {[%clk 0:01:08]}  a4 {[%clk 0:00:02]} 40. Rf5 {[%clk 0:01:06]}  Ka6 {[%clk 0:00:01]} 41. Be5 {[%clk 0:01:06]}  b5 {[%clk 0:00:02]} 42. Rf6+ {[%clk 0:01:06]}  Ka5 {[%clk 0:00:03]} 43. Bc7# {[%clk 0:01:06]} 1-0


[Site "https://www.chess.com"]

[Event "Titled Tuesday Blitz October 18 Late 2022"]
[White "Sernecki, Franciszek"]
[Black "Sibilio, Mario"]
[WhiteFideId "1169297"]
[BlackFideId "800422"]
[WhiteElo "2209"]
[BlackElo "2296"]
[Result "1-0"]
[Round "06"]
[TimeControl "180+1"]
[Date "2022.10.19"]
[WhiteClock "0:00:39"]
[BlackClock "0:00:01"]

1. c4 {[%clk 0:02:53]}  Nf6 {[%clk 0:02:58]} 2. Nc3 {[%clk 0:02:54]}  e6 {[%clk 0:02:57]} 3. e4 {[%clk 0:02:54]}  d5 {[%clk 0:02:55]} 4. cxd5 {[%clk 0:02:54]}  exd5 {[%clk 0:02:54]} 5. e5 {[%clk 0:02:55]}  Ne4 {[%clk 0:02:53]} 6. Nf3 {[%clk 0:02:54]}  Bc5 {[%clk 0:02:51]} 7. d4 {[%clk 0:02:52]}  Bb4 {[%clk 0:02:50]} 8. Qb3 {[%clk 0:02:48]}  c5 {[%clk 0:02:38]} 9. Bd2 {[%clk 0:02:36]}  Nxd2 {[%clk 0:02:35]} 10. Nxd2 {[%clk 0:02:35]}  cxd4 {[%clk 0:02:12]} 11. Qxb4 {[%clk 0:02:20]}  Nc6 {[%clk 0:02:06]} 12. Bb5 {[%clk 0:02:19]}  dxc3 {[%clk 0:02:05]} 13. Qxc3 {[%clk 0:02:16]}  O-O {[%clk 0:02:04]} 14. Bxc6 {[%clk 0:02:14]}  bxc6 {[%clk 0:02:02]} 15. Qxc6 {[%clk 0:02:15]}  Rb8 {[%clk 0:01:58]} 16. Nb3 {[%clk 0:02:15]}  Rb6 {[%clk 0:01:53]} 17. Qc3 {[%clk 0:02:11]}  Ba6 {[%clk 0:01:51]} 18. O-O-O {[%clk 0:02:06]}  Qg5+ {[%clk 0:01:42]} 19. Kb1 {[%clk 0:02:01]}  Rc8 {[%clk 0:01:34]} 20. Qg3 {[%clk 0:01:47]}  Qf5+ {[%clk 0:01:21]} 21. Ka1 {[%clk 0:01:46]}  Rg6 {[%clk 0:01:20]} 22. Qf3 {[%clk 0:01:34]}  Qxf3 {[%clk 0:01:16]} 23. gxf3 {[%clk 0:01:35]}  Be2 {[%clk 0:01:15]} 24. Rd2 {[%clk 0:01:27]}  Bxf3 {[%clk 0:01:14]} 25. Re1 {[%clk 0:01:27]}  Rgc6 {[%clk 0:01:03]} 26. a3 {[%clk 0:01:24]}  Be4 {[%clk 0:00:59]} 27. Nd4 {[%clk 0:01:15]}  Rc1+ {[%clk 0:00:57]} 28. Rxc1 {[%clk 0:01:16]}  Rxc1+ {[%clk 0:00:55]} 29. Ka2 {[%clk 0:01:17]}  Bb1+ {[%clk 0:00:53]} 30. Kb3 {[%clk 0:01:15]}  g6 {[%clk 0:00:52]} 31. Ne2 {[%clk 0:01:11]}  Rc5 {[%clk 0:00:47]} 32. Nc3 {[%clk 0:01:07]}  Be4 {[%clk 0:00:45]} 33. Kb4 {[%clk 0:01:07]}  Rc4+ {[%clk 0:00:44]} 34. Kb5 {[%clk 0:01:06]}  Rc7 {[%clk 0:00:34]} 35. Nxe4 {[%clk 0:00:54]}  dxe4 {[%clk 0:00:33]} 36. b4 {[%clk 0:00:55]}  Kf8 {[%clk 0:00:24]} 37. Re2 {[%clk 0:00:50]}  Ke7 {[%clk 0:00:16]} 38. Rxe4 {[%clk 0:00:50]}  Ke6 {[%clk 0:00:16]} 39. f4 {[%clk 0:00:48]}  Kd5 {[%clk 0:00:14]} 40. Re3 {[%clk 0:00:48]}  Kd4 {[%clk 0:00:14]} 41. Re1 {[%clk 0:00:47]}  Rc3 {[%clk 0:00:12]} 42. a4 {[%clk 0:00:48]}  Rf3 {[%clk 0:00:09]} 43. Ka6 {[%clk 0:00:47]}  Rxf4 {[%clk 0:00:08]} 44. b5 {[%clk 0:00:43]}  Kc5 {[%clk 0:00:06]} 45. a5 {[%clk 0:00:43]}  Rc4 {[%clk 0:00:03]} 46. e6 {[%clk 0:00:40]}  fxe6 {[%clk 0:00:02]} 47. Rxe6 {[%clk 0:00:41]}  Kb4 {[%clk 0:00:01]} 48. Rc6 {[%clk 0:00:39]} 1-0


[Site "https://www.chess.com"]

[Event "Titled Tuesday Blitz October 18 Late 2022"]
[White "Shimanov, Aleksandr"]
[Black "Yuan, Qingyu"]
[WhiteFideId "4198603"]
[BlackFideId "8609772"]
[WhiteElo "2605"]
[BlackElo "2359"]
[Result "0-1"]
[Round "06"]
[TimeControl "180+1"]
[Date "2022.10.18"]
[WhiteClock "0:01:09"]
[BlackClock "0:00:08"]

1. b3 {[%clk 0:03:00]}  d5 {[%clk 0:02:55]} 2. Bb2 {[%clk 0:03:01]}  c5 {[%clk 0:02:55]} 3. e3 {[%clk 0:02:59]}  Nf6 {[%clk 0:02:54]} 4. Nf3 {[%clk 0:02:55]}  g6 {[%clk 0:02:54]} 5. Bb5+ {[%clk 0:02:46]}  Nbd7 {[%clk 0:02:53]} 6. Bxf6 {[%clk 0:02:45]}  exf6 {[%clk 0:02:51]} 7. O-O {[%clk 0:02:44]}  Bg7 {[%clk 0:02:47]} 8. d4 {[%clk 0:02:44]}  O-O {[%clk 0:02:28]} 9. Nc3 {[%clk 0:02:41]}  Qa5 {[%clk 0:02:14]} 10. Qd2 {[%clk 0:02:33]}  cxd4 {[%clk 0:02:06]} 11. Nxd4 {[%clk 0:02:34]}  Nb6 {[%clk 0:01:58]} 12. a3 {[%clk 0:02:28]}  Nd7 {[%clk 0:01:49]} 13. b4 {[%clk 0:02:26]}  Qd8 {[%clk 0:01:49]} 14. Nxd5 {[%clk 0:02:27]}  a6 {[%clk 0:01:46]} 15. Ba4 {[%clk 0:02:26]}  b5 {[%clk 0:01:46]} 16. Bb3 {[%clk 0:02:26]}  Bb7 {[%clk 0:01:45]} 17. Rad1 {[%clk 0:02:25]}  Ne5 {[%clk 0:01:43]} 18. e4 {[%clk 0:02:24]}  Rc8 {[%clk 0:01:36]} 19. Qf4 {[%clk 0:02:19]}  f5 {[%clk 0:01:15]} 20. Ne3 {[%clk 0:02:02]}  Qb6 {[%clk 0:00:41]} 21. exf5 {[%clk 0:02:00]}  Nc4 {[%clk 0:00:41]} 22. Ng4 {[%clk 0:01:50]}  Rfe8 {[%clk 0:00:32]} 23. f6 {[%clk 0:01:49]}  Re4 {[%clk 0:00:32]} 24. Qg5 {[%clk 0:01:42]}  h5 {[%clk 0:00:15]} 25. Nf5 {[%clk 0:01:24]}  Rxg4 {[%clk 0:00:12]} 26. Ne7+ {[%clk 0:01:20]}  Kh7 {[%clk 0:00:11]} 27. Nxc8 {[%clk 0:01:17]}  Rxg5 {[%clk 0:00:06]} 28. Nxb6 {[%clk 0:01:13]}  Rxg2+ {[%clk 0:00:06]} 29. Kh1 {[%clk 0:01:13]}  Rxf2+ {[%clk 0:00:05]} 30. Nd5 {[%clk 0:01:12]}  Bxd5+ {[%clk 0:00:03]} 31. Rxd5 {[%clk 0:01:11]}  Rxf1+ {[%clk 0:00:04]} 32. Kg2 {[%clk 0:01:11]}  Ne3+ {[%clk 0:00:04]} 33. Kg3 {[%clk 0:01:11]}  Nxd5 {[%clk 0:00:05]} 34. fxg7 {[%clk 0:01:12]}  Nf6 {[%clk 0:00:04]} 35. Bxf7 {[%clk 0:01:11]}  Ne4+ {[%clk 0:00:04]} 36. Kh4 {[%clk 0:01:10]}  Rf4+ {[%clk 0:00:05]} 37. Kh3 {[%clk 0:01:09]}  Rxf7 {[%clk 0:00:05]} 38. c4 {[%clk 0:01:08]}  bxc4 {[%clk 0:00:06]} 39. b5 {[%clk 0:01:07]}  c3 {[%clk 0:00:06]} 40. bxa6 {[%clk 0:01:07]}  c2 {[%clk 0:00:07]} 41. a7 {[%clk 0:01:08]}  Rxa7 {[%clk 0:00:07]} 42. a4 {[%clk 0:01:07]}  c1=Q {[%clk 0:00:07]} 43. a5 {[%clk 0:01:08]}  Qf4 {[%clk 0:00:07]} 44. a6 {[%clk 0:01:09]}  Qg4# {[%clk 0:00:08]} 0-1


[Site "https://www.chess.com"]

[Event "Titled Tuesday Blitz October 18 Late 2022"]
[White "Tan, Ralph"]
[Black "Rodriguez Santiago, Jaime"]
[WhiteFideId "30966590"]
[BlackFideId "3100898"]
[WhiteElo "2059"]
[BlackElo "2025"]
[Result "1-0"]
[Round "06"]
[TimeControl "180+1"]
[Date "2022.10.19"]
[WhiteClock "0:01:14"]
[BlackClock "0:00:28"]

1. Nf3 {[%clk 0:03:00]}  Nf6 {[%clk 0:02:56]} 2. g3 {[%clk 0:03:01]}  g6 {[%clk 0:02:56]} 3. Bg2 {[%clk 0:03:01]}  Bg7 {[%clk 0:02:56]} 4. O-O {[%clk 0:03:01]}  O-O {[%clk 0:02:56]} 5. d4 {[%clk 0:03:02]}  d5 {[%clk 0:02:56]} 6. c4 {[%clk 0:03:03]}  c6 {[%clk 0:02:56]} 7. Nbd2 {[%clk 0:03:01]}  dxc4 {[%clk 0:02:52]} 8. Nxc4 {[%clk 0:03:02]}  Nbd7 {[%clk 0:02:50]} 9. b3 {[%clk 0:03:01]}  Nb6 {[%clk 0:02:49]} 10. Nce5 {[%clk 0:02:56]}  Bf5 {[%clk 0:02:43]} 11. Bb2 {[%clk 0:02:54]}  Be4 {[%clk 0:02:31]} 12. Rc1 {[%clk 0:02:53]}  Nbd5 {[%clk 0:02:12]} 13. Bh3 {[%clk 0:02:28]}  Qa5 {[%clk 0:01:59]} 14. a3 {[%clk 0:02:24]}  Qa6 {[%clk 0:01:52]} 15. Ng5 {[%clk 0:02:16]}  Bf5 {[%clk 0:01:43]} 16. Bg2 {[%clk 0:02:05]}  h6 {[%clk 0:01:41]} 17. Nh3 {[%clk 0:01:57]}  Be6 {[%clk 0:01:23]} 18. e4 {[%clk 0:01:54]}  Nc7 {[%clk 0:01:21]} 19. Nf4 {[%clk 0:01:54]}  Bc8 {[%clk 0:01:14]} 20. d5 {[%clk 0:01:49]}  Nb5 {[%clk 0:00:57]} 21. dxc6 {[%clk 0:01:45]}  bxc6 {[%clk 0:00:56]} 22. Nxc6 {[%clk 0:01:40]}  Bg4 {[%clk 0:00:46]} 23. Qe1 {[%clk 0:01:31]}  Rfe8 {[%clk 0:00:36]} 24. e5 {[%clk 0:01:29]}  Nd7 {[%clk 0:00:31]} 25. Nb4 {[%clk 0:01:26]}  Qc8 {[%clk 0:00:29]} 26. Rxc8 {[%clk 0:01:25]}  Raxc8 {[%clk 0:00:30]} 27. e6 {[%clk 0:01:18]}  Bxb2 {[%clk 0:00:29]} 28. exd7 {[%clk 0:01:18]}  Bxa3 {[%clk 0:00:29]} 29. dxe8=Q+ {[%clk 0:01:17]}  Rxe8 {[%clk 0:00:28]} 30. Nbd5 {[%clk 0:01:14]} 1-0


[Site "https://www.chess.com"]

[Event "Titled Tuesday Blitz October 18 Late 2022"]
[White "Ter-Sahakyan, Samvel"]
[Black "Guliyev, Namig"]
[WhiteFideId "13302531"]
[BlackFideId "13400363"]
[WhiteElo "2604"]
[BlackElo "2526"]
[Result "0-1"]
[Round "06"]
[TimeControl "180+1"]
[Date "2022.10.18"]
[WhiteClock "0:00:05"]
[BlackClock "0:00:16"]

1. e4 {[%clk 0:03:00]}  e5 {[%clk 0:02:56]} 2. Nf3 {[%clk 0:03:00]}  Nf6 {[%clk 0:02:57]} 3. Nxe5 {[%clk 0:02:59]}  Nxe4 {[%clk 0:02:57]} 4. Qe2 {[%clk 0:02:59]}  Qe7 {[%clk 0:02:58]} 5. Qxe4 {[%clk 0:02:58]}  d6 {[%clk 0:02:58]} 6. d4 {[%clk 0:02:59]}  dxe5 {[%clk 0:02:58]} 7. dxe5 {[%clk 0:02:59]}  Nc6 {[%clk 0:02:57]} 8. Nc3 {[%clk 0:02:58]}  Qxe5 {[%clk 0:02:57]} 9. Qxe5+ {[%clk 0:02:58]}  Nxe5 {[%clk 0:02:58]} 10. Bf4 {[%clk 0:02:58]}  f6 {[%clk 0:02:51]} 11. Nb5 {[%clk 0:02:38]}  Bb4+ {[%clk 0:02:49]} 12. c3 {[%clk 0:02:38]}  Ba5 {[%clk 0:02:48]} 13. O-O-O {[%clk 0:02:33]}  a6 {[%clk 0:02:37]} 14. Na3 {[%clk 0:02:25]}  b5 {[%clk 0:02:30]} 15. Bxe5 {[%clk 0:02:16]}  fxe5 {[%clk 0:02:29]} 16. Nc2 {[%clk 0:02:12]}  O-O {[%clk 0:02:27]} 17. f3 {[%clk 0:02:10]}  Be6 {[%clk 0:02:20]} 18. a3 {[%clk 0:02:04]}  e4 {[%clk 0:01:56]} 19. fxe4 {[%clk 0:02:01]}  c5 {[%clk 0:01:52]} 20. Be2 {[%clk 0:01:51]}  Bc7 {[%clk 0:01:47]} 21. Bf3 {[%clk 0:01:46]}  Rad8 {[%clk 0:01:37]} 22. h3 {[%clk 0:01:41]}  Bf4+ {[%clk 0:01:23]} 23. Kb1 {[%clk 0:01:39]}  Bb3 {[%clk 0:01:23]} 24. Rxd8 {[%clk 0:01:27]}  Rxd8 {[%clk 0:01:23]} 25. Rd1 {[%clk 0:01:26]}  Rxd1+ {[%clk 0:01:22]} 26. Bxd1 {[%clk 0:01:26]}  Kf7 {[%clk 0:01:18]} 27. Bg4 {[%clk 0:01:12]}  Kf6 {[%clk 0:00:58]} 28. Bc8 {[%clk 0:00:59]}  Bc4 {[%clk 0:00:44]} 29. b4 {[%clk 0:00:51]}  Bf1 {[%clk 0:00:37]} 30. g4 {[%clk 0:00:18]}  cxb4 {[%clk 0:00:20]} 31. axb4 {[%clk 0:00:17]}  Ke5 {[%clk 0:00:20]} 32. h4 {[%clk 0:00:14]}  Kxe4 {[%clk 0:00:17]} 33. Bf5+ {[%clk 0:00:14]}  Kf3 {[%clk 0:00:17]} 34. Nd4+ {[%clk 0:00:12]}  Kg3 {[%clk 0:00:17]} 35. h5 {[%clk 0:00:11]}  h6 {[%clk 0:00:16]} 36. Ne6 {[%clk 0:00:09]}  Be5 {[%clk 0:00:16]} 37. Kc2 {[%clk 0:00:08]}  Be2 {[%clk 0:00:16]} 38. Nc5 {[%clk 0:00:07]}  Bxg4 {[%clk 0:00:16]} 39. Bg6 {[%clk 0:00:05]}  Kf4 {[%clk 0:00:16]} 40. Nxa6 {[%clk 0:00:05]}  Kg5 {[%clk 0:00:16]} 0-1


[Site "https://www.chess.com"]

[Event "Titled Tuesday Blitz October 18 Late 2022"]
[White "Timmermans, Mark"]
[Black "Pap, Gyula"]
[WhiteFideId "1026399"]
[BlackFideId "725323"]
[WhiteElo "2460"]
[BlackElo "2519"]
[Result "1-0"]
[Round "06"]
[TimeControl "180+1"]
[Date "2022.10.18"]
[WhiteClock "0:01:46"]
[BlackClock "0:00:15"]

1. b4 {[%clk 0:03:00]}  e5 {[%clk 0:02:55]} 2. Bb2 {[%clk 0:03:00]}  Bxb4 {[%clk 0:02:56]} 3. Bxe5 {[%clk 0:02:58]}  Nf6 {[%clk 0:02:56]} 4. Nc3 {[%clk 0:02:58]}  Ba5 {[%clk 0:02:51]} 5. e3 {[%clk 0:02:56]}  c5 {[%clk 0:02:48]} 6. Nf3 {[%clk 0:02:53]}  Nc6 {[%clk 0:02:47]} 7. Bxf6 {[%clk 0:02:54]}  Qxf6 {[%clk 0:02:47]} 8. Nd5 {[%clk 0:02:54]}  Qd6 {[%clk 0:02:40]} 9. c4 {[%clk 0:02:54]}  O-O {[%clk 0:02:40]} 10. Be2 {[%clk 0:02:54]}  Ne7 {[%clk 0:02:18]} 11. Nxe7+ {[%clk 0:02:53]}  Qxe7 {[%clk 0:02:19]} 12. O-O {[%clk 0:02:53]}  b6 {[%clk 0:02:09]} 13. d4 {[%clk 0:02:52]}  Bb7 {[%clk 0:02:09]} 14. Rb1 {[%clk 0:02:48]}  Rad8 {[%clk 0:02:04]} 15. d5 {[%clk 0:02:47]}  d6 {[%clk 0:02:03]} 16. Bd3 {[%clk 0:02:42]}  Bc8 {[%clk 0:02:00]} 17. Nd2 {[%clk 0:02:41]}  g6 {[%clk 0:01:53]} 18. Qc2 {[%clk 0:02:36]}  Bxd2 {[%clk 0:01:52]} 19. Qxd2 {[%clk 0:02:37]}  f5 {[%clk 0:01:50]} 20. Rfe1 {[%clk 0:02:35]}  Bd7 {[%clk 0:01:47]} 21. g3 {[%clk 0:02:30]}  Rb8 {[%clk 0:01:42]} 22. e4 {[%clk 0:02:28]}  f4 {[%clk 0:01:36]} 23. e5 {[%clk 0:02:20]}  fxg3 {[%clk 0:01:29]} 24. hxg3 {[%clk 0:02:18]}  dxe5 {[%clk 0:01:28]} 25. f4 {[%clk 0:02:07]}  e4 {[%clk 0:00:50]} 26. Rxe4 {[%clk 0:02:06]}  Qg7 {[%clk 0:00:50]} 27. Rbe1 {[%clk 0:02:01]}  Rf7 {[%clk 0:00:47]} 28. Re5 {[%clk 0:01:56]}  Rbf8 {[%clk 0:00:47]} 29. d6 {[%clk 0:01:48]}  Bc6 {[%clk 0:00:29]} 30. Be4 {[%clk 0:01:47]}  Bxe4 {[%clk 0:00:29]} 31. R1xe4 {[%clk 0:01:48]}  Rd7 {[%clk 0:00:19]} 32. Re7 {[%clk 0:01:48]}  Qa1+ {[%clk 0:00:15]} 33. Re1 {[%clk 0:01:46]} 1-0


[Site "https://www.chess.com"]